[Event "Tech Mahindra GCL Final 2024"]
[Site "London"]
[Date "2024.10.12"]
[Round "2"]
[White "Giri, Anish"]
[Black "Firouzja, Alireza"]
[Result "1-0"]
[ECO "B12"]
[WhiteElo "2728"]
[BlackElo "2767"]
[Annotator "TA"]
[PlyCount "115"]
[EventDate "2024.09.29"]
[EventType "team-tourn"]
[EventCountry "ENG"]
[SourceTitle "playchess.com"]
[Source "ChessBase"]
[SourceQuality "1"]
[WhiteTeam "Alaskan Knights"]
[BlackTeam "Triveni Continental Kings"]
[TimeControl "1200"]

{[%evp 71,115,23,31,0,0,0,0,0,0,0,0,0,0,-270,-216,-265,-260,-260,-233,-452,-425,-452,-452,-446,0,-375,-375,-371,-349,-367,-370,-387,-235,-430,0,0,0,0,0,0,0,0,0,0,2011,1859]} 1. e4 {[%emt 0:00:01]} c6 {[%emt 0:00:00]} 2. d4 {[%emt 0:00:01]} d5 {[%emt 0:00:01]} 3. e5 {[%emt 0:00:01]} Bf5 {[%emt 0:00:01]} 4. Nf3 {[%emt 0:00:01]} e6 {[%emt 0:00:01]} 5. Be2 {[%emt 0:00:01]} Ne7 {[%emt 0:00:05]} 6. c3 {[%emt 0:00:00]} h6 {[%emt 0:00:07]} 7. O-O {[%emt 0:00:02]} Nd7 {[%emt 0:00:05]} 8. Na3 {[%emt 0:00:02]} a6 {[%emt 0:00:24] B12: Caro-Kann: Advance Variation.} (8... Bh7 9. Nc2 Ng6 10. Bd3 Be7 11. g3 c5 12. h4 c4 13. Be2 O-O 14. Ne3 f6 15. h5 Nh8 16. exf6 Nxf6 17. Ne5 Nf7 18. Ng6 Bxg6 19. hxg6 {½-½ Giri,A (2764)-Firouzja,A (2728) Chessbrahmin May blitz 2020 (3.3)}) 9. Nc2 {[%emt 0:00:03]} c5 {[%emt 0:00:22]} 10. dxc5 {[%emt 0:00:05]} Nxc5 {[%emt 0:00:04]} 11. Be3 {[%emt 0:00:09]} Nd7 {[%emt 0:00:14]} 12. Ncd4 {[%emt 0:00:03]} g5 {[%emt 0:00:11]} 13. c4 $146 {[%emt 0:00:07]} ({Predecessor:} 13. Nxf5 Nxf5 14. Bd4 Bg7 15. Re1 g4 16. Nd2 h5 17. f4 Nxd4 18. cxd4 Qb6 19. Nb3 {½-½ Binas,J (2234)-Kotrc,M (2212) CZE-ch sf31 email 2013}) 13... Bg6 {[%emt 0:00:34]} 14. h4 {[%emt 0:01:23]} dxc4 {[%emt 0:00:55]} 15. hxg5 {[%emt 0:01:19]} hxg5 {[%emt 0:01:57]} 16. Bxg5 {[%emt 0:00:17]} Bg7 {[%emt 0:00:55]} 17. Bxc4 {[%emt 0:00:12]} Nxe5 {[%emt 0:00:07]} 18. Qe2 {[%emt 0:02:08]} Nxc4 {[%emt 0:02:43]} 19. Qxc4 {[%emt 0:00:02]} Rc8 {[%emt 0:00:21]} 20. Qb4 {[%emt 0:00:06]} Qd7 {[%emt 0:01:06]} 21. Rfe1 {[%emt 0:01:22]} Nd5 {[%emt 0:00:38]} 22. Qa3 {[%emt 0:00:03]} Bf8 {[%emt 0:04:34]} 23. Qb3 {[%emt 0:00:01]} Bg7 {[%emt 0:00:12]} 24. Qa3 {[%emt 0:00:01]} Bf8 {[%emt 0:00:12]} 25. Qb3 {[%emt 0:00:01]} Bg7 {[%emt 0:00:03]} 26. Ne5 {[%emt 0:00:07]} Bxe5 {[%emt 0:00:33]} 27. Rxe5 {[%emt 0:00:01]} Kf8 {[%emt 0:01:02]} 28. Rae1 {[%emt 0:00:11]} Kg7 {[%emt 0:00:03]} 29. Qf3 {[%emt 0:00:13]} Rh5 {[%emt 0:00:27]} 30. Ne2 {[%emt 0:02:46]} f6 {[%emt 0:00:42]} 31. Rxd5 {[%emt 0:00:12]} Qxd5 {[%emt 0:00:01]} 32. Qxf6+ {[%emt 0:00:02]} Kh7 {[%emt 0:00:00]} 33. Qe7+ {[%emt 0:00:37]} Kg8 {[%emt 0:00:01]} 34. Nf4 {[%emt 0:00:05]} Qe4 {[%emt 0:00:01]} 35. Rd1 {[%emt 0:01:55]} Rh7 {[%emt 0:00:46]} 36. Qf6 {[%emt 0:00:12]} (36. Qxe6+ Qxe6 37. Nxe6 Bf7 $17) 36... Bf5 {[%emt 0:00:08]} 37. Bh6 {[%emt 0:00:08]} Rf7 $1 {[%emt 0:00:03]} 38. Qg5+ {[%emt 0:00:05]} (38. Nh5 $2 Qg4 39. Rd8+ Rxd8 40. Qxd8+ Kh7 41. Nf6+ Rxf6 42. Qxf6 Qd1+ 43. Kh2 Qh5+ 44. Kg1 Qxh6 $19) 38... Kh7 {[%emt 0:00:01]} 39. Qh4 {[%emt 0:00:10]} Kg8 {[%emt 0:00:01]} 40. Qg5+ {[%emt 0:00:09]} Kh7 {[%emt 0:00:01]} 41. Qh4 {[%emt 0:00:01]} e5 {[%emt 0:00:01]} 42. f3 $2 {[%emt 0:00:19][%mdl 8192] [#]} (42. Bg5+ Kg8 43. Nd5 (43. Bf6 $2 Rh7 $19) 43... Qxh4 44. Bxh4 Rc2 45. Nf6+ Rxf6 46. Bxf6 Rxb2) (42. Bg7+ $11 Kxg7 43. Ne6+ Kg6 (43... Kg8 $2 44. Rd8+ Rxd8 45. Qxd8+ Kh7 46. Ng5+ Kg7 47. Nxe4 $18) 44. Qg5+ Kh7 45. Qh5+ Kg8 46. Qg5+ Kh7 47. Qh5+ Kg8 48. Qg5+ Kh7) 42... Qc2 $1 $19 {[%emt 0:00:04]} 43. Rd6 {[%emt 0:00:20]} exf4 {[%emt 0:00:02]} (43... Qc5+ 44. Kh2 exf4 (44... Qxd6 $2 45. Bf8+ Kg8 46. Bxd6 $18) 45. Rf6 Rxf6 46. Bf8+ Kg6 47. Bxc5 Rxc5 48. Qxf4 $19) 44. Bxf4+ {[%emt 0:00:04]} Kg8 {[%emt 0:00:00]} 45. Rh6 $2 {[%emt 0:00:02]} (45. Rd8+ {was the only chance.} Rf8 (45... Rxd8 $2 46. Qxd8+ Rf8 47. Qd5+ Kh7 48. Qxb7+ Kg6 49. Qxa6+ Rf6 50. Qb5 $19) 46. Rd4) 45... Rg7 $19 {[%emt 0:00:01]} 46. Bg3 {[%emt 0:00:06]} Qc1+ {[%emt 0:00:01]} (46... Qxb2 47. Rh8+ Kf7 48. Qh5+ Ke7 49. Qh4+ Qf6 50. Rxc8 Bxc8 51. Qe4+ Qe6 52. Qb4+ Kf7 53. Qd2) 47. Kh2 {[%emt 0:00:01]} Rc6 $2 {[%emt 0:00:01]} (47... Qxb2 48. Rh8+ Kf7 49. Qh5+ Ke7 50. Rh6 Rxg3 51. Qh4+ Kd7 52. Qxg3 $19) ({Black should play} 47... Qxh6 $19 48. Qxh6 Rh7 49. Qxh7+ Kxh7) 48. Qd8+ $2 {[%emt 0:00:08][%mdl 8192]} (48. Rh8+ $11 {and White stays safe.} Kf7 49. Qh5+ Bg6 50. Qd5+ Re6 51. Qxb7+ Re7 52. Qd5+ Re6 53. Qb7+ Re7 54. Qb3+ Re6 55. Qb7+) 48... Kf7 $19 {[%emt 0:00:01]} 49. Qd5+ {[%emt 0:00:01]} Be6 {[%emt 0:00:01]} 50. Qh5+ {[%emt 0:00:02]} Kf8 {[%emt 0:00:00]} 51. Rh8+ {[%emt 0:00:04]} (51. Be5 Rxg2+ 52. Kxg2 Rc2+ (52... Bxa2 53. Qf5+ Bf7 54. Bg7+ Ke7 55. Bf6+ Ke8 56. Rh8+) (52... Qd2+ 53. Kg3 Qe1+ 54. Kf4 Rc4+ 55. Bd4 Rxd4+ 56. Kg5 Qe5+ 57. Kg6 Qg7#) 53. Kg3 Qe1+ (53... Bxa2 54. Bd6+ Kg8 55. Qg6#) 54. Kf4 Rc4+ (54... Bxa2 55. Qf5+ Ke8 56. Rh8+ Ke7 57. Qf6+ Kd7 58. Rd8#) (54... Bxa2 55. Qf5+ Ke8 56. Rh8+ Ke7 57. Qf6+ Kd7 58. Rd8#)) 51... Bg8 {[%emt 0:00:00]} 52. Qh4 $2 {[%emt 0:00:05]} (52. Qf5+ Rf7 53. Qe5 Rh6+ 54. Bh4) 52... Rcg6 $2 {[%emt 0:00:01]} (52... Qxb2 53. Qd8+ Kf7 54. Qd7+ Kf8 (54... Kg6 55. Qe8+ Bf7 56. Qe4+ Kf6 57. Bh4+ Rg5 58. f4 Bg6 59. Rf8+ Bf7 60. Qd5) 55. Bd6+ Rxd6 56. Qxd6+ Kf7 57. Qc7+ (57. Qd7+ Kg6 $11) 57... Ke8 58. Qc8+ Ke7 59. Qc7+ Ke8 60. Qc8+ Ke7 61. Qc7+ Ke8 $11) (52... Qd2 $19 {[%cal Oc6g6] Strongly threatening ...Rcg6!} 53. Bf2 Rgg6 (53... Qxb2 54. Qd8+ Kf7 55. Qd7+ Kf8 56. Qd8+ Kf7 57. Qd7+ Kf8 58. Qd8+ $11)) 53. Qd8+ $11 {[%emt 0:00:02]} Kf7 {[%emt 0:00:00]} 54. Qd7+ {[%emt 0:00:00]} Kf6 {[%emt 0:00:02]} 55. Qd6+ {[%emt 0:00:05]} Kf7 {[%emt 0:00:00]} 56. Qd7+ {[%emt 0:00:01]} Kf6 {[%emt 0:00:00]} 57. Bh4+ {[%emt 0:00:04]} Ke5 $2 {[%emt 0:00:00][%mdl 8192]} (57... Rg5 $11 58. Rh6+ R7g6 59. Qd4+ Kf7 60. Qd7+ Kf6 (60... Kf8 $2 61. Rxg6 Qf4+ 62. g3 $18) 61. Qd4+ Kf7 62. Qd7+ Kf6 (62... Kf8 $2 63. Rxg6 Qf4+ 64. g3 $18)) 58. Rh5+ {[%emt 0:00:02]} 1-0

[Event "Tech Mahindra GCL Final 2024"]
[Site "London"]
[Date "2024.10.12"]
[Round "2"]
[White "Nihal Sarin"]
[Black "Sindarov, Javokhir"]
[Result "1/2-1/2"]
[ECO "D02"]
[WhiteElo "2668"]
[BlackElo "2668"]
[Annotator "TA"]
[PlyCount "94"]
[EventDate "2024.09.29"]
[EventType "team-tourn"]
[EventCountry "ENG"]
[SourceTitle "playchess.com"]
[Source "ChessBase"]
[SourceQuality "1"]
[WhiteTeam "Alaskan Knights"]
[BlackTeam "Triveni Continental Kings"]
[TimeControl "1200"]

{[%evp 10,94,24,15,30,24,26,23,31,0,18,14,29,30,36,20,34,-22,-21,-52,-51,-47,-55,-47,-45,-45,-45,-45,-45,-61,-52,-45,0,0,0,0,0,-46,0,0,0,0,0,0,0,0,0,0,0,0,0,0,0,0,0,0,0,0,0,0,0,0,0,2,5,0,0,0,0,0,0,0,0,0,0,0,0,0,0,0,0,0,0,0,0,0,0]} 1. d4 {[%emt 0:00:02]} Nf6 {[%emt 0:00:02]} 2. Nf3 {[%emt 0:00:01]} d5 {[%emt 0:00:02]} 3. c3 {[%emt 0:00:12]} e6 {[%emt 0:01:01]} 4. Bf4 {[%emt 0:00:02]} c5 {[%emt 0:00:31]} 5. e3 {[%emt 0:00:02]} Qb6 {[%emt 0:00:06]} 6. Qb3 {[%emt 0:00:22]} Nc6 {[%emt 0:02:00]} 7. Be2 {[%emt 0:00:10]} Be7 {[%emt 0:00:59]} 8. Nbd2 {[%emt 0:00:11]} O-O {[%emt 0:01:07] White has an edge.} 9. h4 {[%emt 0:00:12]} Bd7 {[%emt 0:00:16]} 10. Ne5 {[%emt 0:00:31]} Nxe5 {[%emt 0:00:43]} 11. dxe5 {[%emt 0:00:17]} Ne4 {[%emt 0:00:03]} 12. Nxe4 {[%emt 0:00:15]} dxe4 {[%emt 0:00:01]} 13. h5 {[%emt 0:01:56]} (13. Bg5 $14 Bd8 14. Qxb6 axb6 15. O-O-O) 13... Bc6 {[%emt 0:00:23]} 14. g4 {[%emt 0:00:45]} Rfd8 {[%emt 0:00:36]} 15. g5 {[%emt 0:00:16][%cal Og5g6]} Qxb3 {[%emt 0:00:19]} 16. axb3 {[%emt 0:00:01]} g6 {[%emt 0:00:04]} 17. Bd1 {[%emt 0:01:37]} Rd7 {[%emt 0:01:04]} 18. Bc2 {[%emt 0:00:03]} Rad8 {[%emt 0:00:01]} 19. Rd1 {[%emt 0:00:28] Against Rd2} (19. Rxa7 $2 {too greedy.} Rd2 20. h6 Rxc2 $19) 19... Rxd1+ {[%emt 0:00:26]} 20. Bxd1 {[%emt 0:00:02]} Bb5 {[%emt 0:01:50]} 21. Bc2 {[%emt 0:01:47]} Bd3 {[%emt 0:00:09]} 22. Bxd3 {[%emt 0:00:02]} Rxd3 $11 {[%emt 0:00:52][%mdl 4096] Endgame. KRB-KRB} 23. Ke2 {[%emt 0:00:01]} (23. hxg6 $11 {is more appropriate.} hxg6 24. Ke2) 23... a5 {[%emt 0:00:39]} (23... gxh5 $15 24. Rxh5 b5) 24. hxg6 {[%emt 0:00:30] The position is equal.} hxg6 {[%emt 0:00:01]} 25. Ra1 {[%emt 0:00:02]} b6 {[%emt 0:00:15]} 26. Ra4 {[%emt 0:00:03]} Rd7 {[%emt 0:00:30]} 27. Rxe4 {[%emt 0:00:02]} b5 {[%emt 0:00:01] Against Ra4} 28. f3 {[%emt 0:01:19]} Kg7 {[%emt 0:00:38]} 29. Bg3 {[%emt 0:01:04]} Bxg5 {[%emt 0:00:04]} 30. Bh4 {[%emt 0:00:04]} Bxh4 {[%emt 0:00:02]} 31. Rxh4 {[%emt 0:00:01] KR-KR} Rd5 {[%emt 0:00:33]} 32. f4 {[%emt 0:00:23]} c4 {[%emt 0:00:29]} 33. bxc4 {[%emt 0:01:17]} bxc4 {[%emt 0:00:01]} 34. Rh2 {[%emt 0:00:01]} f6 {[%emt 0:01:05]} 35. exf6+ {[%emt 0:00:28]} Kxf6 {[%emt 0:00:01]} 36. Kf3 {[%emt 0:00:01]} g5 {[%emt 0:00:01]} 37. Ke4 {[%emt 0:00:10]} gxf4 $1 {[%emt 0:00:01]} 38. exf4 {[%emt 0:00:01]} Ke7 {[%emt 0:00:28]} 39. Rh7+ {[%emt 0:01:32]} Kd6 {[%emt 0:00:01]} 40. Ra7 {[%emt 0:00:12]} Rb5 {[%emt 0:00:01]} 41. Ra6+ {[%emt 0:00:03]} Kd7 {[%emt 0:00:01]} 42. Ke3 {[%emt 0:00:34]} Rxb2 {[%emt 0:00:15]} 43. Rxa5 {[%emt 0:00:02]} Rc2 {[%emt 0:00:01]} 44. Kd4 {[%emt 0:00:22]} Rf2 {[%emt 0:00:11]} 45. Ra7+ {[%emt 0:00:10]} Kd6 {[%emt 0:00:02]} 46. Ra6+ {[%emt 0:00:10]} Ke7 {[%emt 0:00:07]} 47. Kxc4 {[%emt 0:00:18]} Rxf4+ {[%emt 0:00:01] Weighted Error Value: White=0.06 (flawless) /Black=0.04 (flawless) .  Mistake:       	White=2     	Black=1      Inaccurate:     	White=2     	Black=1      OK:         	White=17    	Black=18     Best:        	White=1     	Black=3      Strong:       	---       	Black=1} 1/2-1/2

[Event "Tech Mahindra GCL Final 2024"]
[Site "London"]
[Date "2024.10.12"]
[Round "2"]
[White "Tan, Zhongyi"]
[Black "Kosteniuk, Alexandra"]
[Result "0-1"]
[ECO "B13"]
[WhiteElo "2551"]
[BlackElo "2480"]
[Annotator "RC"]
[PlyCount "186"]
[EventDate "2024.09.29"]
[EventType "team-tourn"]
[EventCountry "ENG"]
[SourceTitle "playchess.com"]
[Source "ChessBase"]
[SourceQuality "1"]
[WhiteTeam "Alaskan Knights"]
[BlackTeam "Triveni Continental Kings"]
[TimeControl "1200"]

1. d4 {[%emt 0:00:03]} Nf6 {[%emt 0:00:01]} 2. Nc3 {[%emt 0:00:01]} d5 {[%emt 0:00:03]} 3. Bf4 {[%emt 0:00:02]} c5 {[%emt 0:00:06]} 4. e3 {[%emt 0:00:02]} cxd4 {[%emt 0:00:01]} 5. exd4 {[%emt 0:00:01]} Bg4 {[%emt 0:00:02]} 6. Be2 {[%emt 0:00:03]} Bxe2 {[%emt 0:00:18]} 7. Ncxe2 {[%emt 0:00:02]} Nc6 {[%emt 0:00:17]} 8. Nf3 {[%emt 0:00:02]} e6 {[%emt 0:00:12]} 9. O-O {[%emt 0:00:07]} Bd6 {[%emt 0:00:02]} 10. c3 {[%emt 0:00:05]} Qc7 {[%emt 0:00:39]} 11. Bxd6 {[%emt 0:00:04]} Qxd6 {[%emt 0:00:02]} 12. a4 {[%emt 0:00:01]} O-O {[%emt 0:00:11]} 13. Nc1 {[%emt 0:00:05]} Ne4 {[%emt 0:00:28]} 14. Nd3 {[%emt 0:00:04]} Ne7 {[%emt 0:00:12]} 15. Re1 {[%emt 0:00:15]} Nf5 {[%emt 0:00:42]} 16. Nfe5 {[%emt 0:01:05]} Rac8 {[%emt 0:01:28]} 17. f3 {[%emt 0:00:19]} Nf6 {[%emt 0:00:09]} 18. Qd2 {[%emt 0:00:18]} Nd7 {[%emt 0:00:23]} 19. Ng4 {[%emt 0:00:55]} Rfe8 {[%emt 0:00:25]} 20. Re2 {[%emt 0:00:08]} Qb6 {[%emt 0:00:16]} 21. Kh1 {[%emt 0:00:10]} a5 {[%emt 0:00:19]} 22. Rae1 {[%emt 0:00:12]} Qd8 {[%emt 0:00:56]} 23. g3 {[%emt 0:01:14]} h6 {[%emt 0:00:07]} 24. Kg2 {[%emt 0:00:18]} Qg5 {[%emt 0:01:34]} 25. Nf4 {[%emt 0:01:05]} Nd6 {[%emt 0:00:01]} 26. h4 {[%emt 0:00:28]} Qf5 {[%emt 0:00:01]} 27. Ne3 {[%emt 0:00:54]} Qf6 {[%emt 0:01:07]} 28. Qd3 {[%emt 0:00:06]} Nb6 {[%emt 0:00:42]} 29. Nh5 {[%emt 0:02:06]} Qd8 {[%emt 0:02:10]} 30. Qd1 {[%emt 0:00:02]} g6 {[%emt 0:00:29]} 31. Nf4 {[%emt 0:00:02]} Nf5 {[%emt 0:01:19]} 32. Nxf5 {[%emt 0:01:36]} gxf5 {[%emt 0:00:01]} 33. Kh3 {[%emt 0:00:26]} Nc4 {[%emt 0:00:13]} 34. Nh5 {[%emt 0:00:38]} Kh7 {[%emt 0:00:13]} 35. g4 {[%emt 0:00:50]} Nd6 {[%emt 0:00:23]} 36. Qd3 {[%emt 0:00:14]} Rg8 {[%emt 0:00:08]} 37. Re5 {[%emt 0:00:28]} Kh8 {[%emt 0:00:53]} 38. Qd2 {[%emt 0:01:13]} Rg6 {[%emt 0:00:03]} 39. Nf4 {[%emt 0:00:07]} Rg7 {[%emt 0:00:31]} 40. Nh5 {[%emt 0:00:45]} Rg6 {[%emt 0:00:00]} 41. Qf4 {[%emt 0:00:06]} Kh7 {[%emt 0:00:40]} 42. Ng3 {[%emt 0:00:12]} fxg4+ {[%emt 0:00:02]} 43. fxg4 {[%emt 0:00:02]} Qf6 {[%emt 0:00:03]} 44. Qxf6 {[%emt 0:01:22]} Rxf6 {[%emt 0:00:01]} 45. R5e2 {[%emt 0:00:07]} Rf3 {[%emt 0:00:08]} 46. Kg2 {[%emt 0:00:03]} Rf4 {[%emt 0:00:00]} 47. Kh3 {[%emt 0:00:04]} Rf3 {[%emt 0:00:12]} 48. Kg2 {[%emt 0:00:04]} Rf4 {[%emt 0:00:01]} 49. Kh3 {[%emt 0:00:01]} Rf3 {[%emt 0:00:10]} 50. Re3 {[%emt 0:00:01]} Rxe3 {[%emt 0:00:03]} 51. Rxe3 {[%emt 0:00:01]} Nc4 {[%emt 0:00:03]} 52. Re2 {[%emt 0:00:00]} Nb6 {[%emt 0:00:01]} 53. Rf2 {[%emt 0:00:03]} Rc7 {[%emt 0:00:00]} 54. b3 {[%emt 0:00:06]} Kg8 {[%emt 0:00:02]} 55. Rf3 {[%emt 0:00:01]} Nc8 {[%emt 0:00:02]} 56. Nh5 {[%emt 0:00:01]} Nd6 {[%emt 0:00:02]} 57. Nf6+ {[%emt 0:00:01]} Kg7 {[%emt 0:00:01]} 58. g5 {[%emt 0:00:01]} hxg5 {[%emt 0:00:01]} 59. hxg5 {[%emt 0:00:01]} Rc8 {[%emt 0:00:01]} 60. Kg4 {[%emt 0:00:02]} Nf5 {[%emt 0:00:09]} 61. Nh5+ {[%emt 0:00:04]} Kg6 {[%emt 0:00:07]} 62. Rh3 {[%emt 0:00:03]} Nd6 {[%emt 0:00:05]} 63. Nf6 {[%emt 0:00:06]} Nf5 {[%emt 0:00:06]} 64. Kf4 {[%emt 0:00:07]} b6 {[%emt 0:00:02]} 65. Ng4 {[%emt 0:00:02]} Kg7 {[%emt 0:00:04]} 66. Nf6 {[%emt 0:00:02]} Kg6 {[%emt 0:00:11]} 67. Nd7 {[%emt 0:00:01]} Nd6 {[%emt 0:00:10]} 68. Ne5+ {[%emt 0:00:02]} Kg7 {[%emt 0:00:01]} 69. Rg3 {[%emt 0:00:03]} Nf5 {[%emt 0:00:00]} 70. Rh3 {[%emt 0:00:01]} Nd6 {[%emt 0:00:01]} 71. Rf3 {[%emt 0:00:05]} Ne4 {[%emt 0:00:01]} 72. Kg4 {[%emt 0:00:02]} Nd6 {[%emt 0:00:02]} 73. c4 {[%emt 0:00:00]} dxc4 {[%emt 0:00:01]} 74. bxc4 {[%emt 0:00:01]} Rc7 {[%emt 0:00:00]} 75. Rc3 {[%emt 0:00:03]} f6 {[%emt 0:00:03]} 76. gxf6+ {[%emt 0:00:02]} Kxf6 {[%emt 0:00:01]} 77. Kf4 {[%emt 0:00:02]} Ke7 {[%emt 0:00:01]} 78. c5 {[%emt 0:00:01]} bxc5 {[%emt 0:00:00]} 79. dxc5 {[%emt 0:00:01]} Nf5 {[%emt 0:00:02]} 80. c6 {[%emt 0:00:01]} Nd4 {[%emt 0:00:01]} 81. Rc5 {[%emt 0:00:01]} Kd6 {[%emt 0:00:01]} 82. Rc4 {[%emt 0:00:02]} Nxc6 {[%emt 0:00:01]} 83. Nd3 {[%emt 0:00:06]} Ne7 {[%emt 0:00:02]} 84. Rd4+ {[%emt 0:00:01]} Nd5+ {[%emt 0:00:01]} 85. Ke4 {[%emt 0:00:00]} Rh7 {[%emt 0:00:00]} 86. Kf3 {[%emt 0:00:02]} Rh3+ {[%emt 0:00:01]} 87. Ke2 {[%emt 0:00:01]} Rh2+ {[%emt 0:00:01]} 88. Ke1 {[%emt 0:00:00]} Ra2 {[%emt 0:00:01]} 89. Nf4 {[%emt 0:00:01]} Ra1+ {[%emt 0:00:00]} 90. Ke2 {[%emt 0:00:00]} Ra2+ {[%emt 0:00:01]} 91. Kf3 {[%emt 0:00:01]} Ra3+ {[%emt 0:00:00]} 92. Ke4 {[%emt 0:00:00]} Rxa4 {[%emt 0:00:01]} 93. Rxa4 {[%emt 0:00:01]} Nc3+ {[%emt 0:00:01]} 0-1

[Event "Tech Mahindra GCL Final 2024"]
[Site "London"]
[Date "2024.10.12"]
[Round "2"]
[White "Kashlinskaya, Alina"]
[Black "Gunina, Valentina"]
[Result "0-1"]
[ECO "D17"]
[WhiteElo "2493"]
[BlackElo "2425"]
[Annotator "RC"]
[PlyCount "176"]
[EventDate "2024.09.29"]
[EventType "team-tourn"]
[EventCountry "ENG"]
[SourceTitle "playchess.com"]
[Source "ChessBase"]
[SourceQuality "1"]
[WhiteTeam "Alaskan Knights"]
[BlackTeam "Triveni Continental Kings"]
[TimeControl "1200"]

1. d4 {[%emt 0:00:01]} d5 {[%emt 0:00:01]} 2. c4 {[%emt 0:00:01]} c6 {[%emt 0:00:01]} 3. Nf3 {[%emt 0:00:01]} Nf6 {[%emt 0:00:01]} 4. Nc3 {[%emt 0:00:02]} dxc4 {[%emt 0:00:02]} 5. a4 {[%emt 0:00:01]} Bf5 {[%emt 0:00:02]} 6. Ne5 {[%emt 0:00:01]} Nbd7 {[%emt 0:00:01]} 7. Nxc4 {[%emt 0:00:02]} Nb6 {[%emt 0:00:02]} 8. Ne5 {[%emt 0:00:02]} a5 {[%emt 0:00:01]} 9. e3 {[%emt 0:00:01]} Nbd7 {[%emt 0:00:24]} 10. Nc4 {[%emt 0:00:02]} e6 {[%emt 0:00:31]} 11. f3 {[%emt 0:00:01]} Bb4 {[%emt 0:00:08]} 12. e4 {[%emt 0:00:04]} Bg6 {[%emt 0:00:02]} 13. Be3 {[%emt 0:00:21]} O-O {[%emt 0:00:03]} 14. Qb3 {[%emt 0:00:50]} Qb8 {[%emt 0:00:19]} 15. Be2 {[%emt 0:00:32]} Ne8 {[%emt 0:02:00]} 16. O-O {[%emt 0:00:15]} b5 {[%emt 0:00:11]} 17. axb5 {[%emt 0:01:03]} cxb5 {[%emt 0:00:02]} 18. Nd2 {[%emt 0:00:32]} Bd6 {[%emt 0:00:13]} 19. e5 {[%emt 0:00:15]} b4 {[%emt 0:00:39]} 20. Nb5 {[%emt 0:01:15]} Be7 {[%emt 0:00:01]} 21. f4 {[%emt 0:00:31]} Nb6 {[%emt 0:00:02]} 22. Bf2 {[%emt 0:01:27]} a4 {[%emt 0:00:14]} 23. Qf3 {[%emt 0:00:01]} Nd5 {[%emt 0:00:11]} 24. h4 {[%emt 0:00:49]} f5 {[%emt 0:00:16]} 25. h5 {[%emt 0:00:10]} Bf7 {[%emt 0:00:02]} 26. Rfc1 {[%emt 0:00:17]} Ra5 {[%emt 0:00:15]} 27. Nb3 {[%emt 0:00:56]} Rxb5 {[%emt 0:00:05]} 28. Bxb5 {[%emt 0:00:01]} Qxb5 {[%emt 0:00:01]} 29. Nc5 {[%emt 0:00:01]} Nec7 {[%emt 0:00:20]} 30. h6 {[%emt 0:00:03]} gxh6 {[%emt 0:00:12]} 31. Nxa4 {[%emt 0:00:14]} Kh8 {[%emt 0:00:06]} 32. Nc5 {[%emt 0:00:04]} Rg8 {[%emt 0:00:06]} 33. Ra7 {[%emt 0:00:02]} Qe8 {[%emt 0:00:14]} 34. Nd3 {[%emt 0:00:15]} Bh5 {[%emt 0:00:47]} 35. Qh3 {[%emt 0:00:00]} Nb5 {[%emt 0:00:39]} 36. Rxe7 {[%emt 0:01:59]} Nxe7 {[%emt 0:00:09]} 37. Bh4 {[%emt 0:00:01]} Nd5 {[%emt 0:00:29]} 38. Nxb4 {[%emt 0:00:01]} Nbc7 {[%emt 0:01:23]} 39. Rxc7 {[%emt 0:00:07]} Nxc7 {[%emt 0:00:02]} 40. Bf6+ {[%emt 0:00:01]} Rg7 {[%emt 0:00:01]} 41. Qc3 {[%emt 0:00:43]} Qd7 {[%emt 0:00:31]} 42. Qh3 {[%emt 0:00:33]} Qxd4+ {[%emt 0:00:06]} 43. Kh1 {[%emt 0:00:04]} Qd1+ {[%emt 0:00:40]} 44. Kh2 {[%emt 0:00:01]} Ne8 {[%emt 0:00:06]} 45. Bxg7+ {[%emt 0:00:01]} Kxg7 {[%emt 0:00:01]} 46. Nd3 {[%emt 0:00:01]} Qg4 {[%emt 0:00:22]} 47. Qe3 {[%emt 0:00:01]} Qh4+ {[%emt 0:00:05]} 48. Kg1 {[%emt 0:00:01]} Qd8 {[%emt 0:00:10]} 49. b4 {[%emt 0:00:05]} Nc7 {[%emt 0:00:17]} 50. Nc5 {[%emt 0:00:09]} Bf7 {[%emt 0:00:37]} 51. Qg3+ {[%emt 0:00:29]} Kf8 {[%emt 0:00:02]} 52. Qf2 {[%emt 0:00:09]} h5 {[%emt 0:00:30]} 53. Kh2 {[%emt 0:00:04]} Be8 {[%emt 0:00:21]} 54. Qa2 {[%emt 0:00:23]} Qh4+ {[%emt 0:00:08]} 55. Kg1 {[%emt 0:00:01]} Qe1+ {[%emt 0:00:32]} 56. Kh2 {[%emt 0:00:01]} Qxb4 {[%emt 0:00:03]} 57. Nxe6+ {[%emt 0:00:07]} Nxe6 {[%emt 0:00:01]} 58. Qxe6 {[%emt 0:00:01]} Qxf4+ {[%emt 0:00:02]} 59. Kg1 {[%emt 0:00:01]} Qg5 {[%emt 0:00:09]} 60. Qd6+ {[%emt 0:00:01]} Kg7 {[%emt 0:00:16]} 61. Qc7+ {[%emt 0:00:03]} Bf7 {[%emt 0:00:08]} 62. Qc3 {[%emt 0:00:09]} Be6 {[%emt 0:00:01]} 63. Qc7+ {[%emt 0:00:02]} Kg8 {[%emt 0:00:09]} 64. Qb8+ {[%emt 0:00:02]} Kf7 {[%emt 0:00:01]} 65. Qh8 {[%emt 0:00:18]} Qg7 {[%emt 0:00:03]} 66. Qb8 {[%emt 0:00:01]} Kg6 {[%emt 0:00:23]} 67. Qd6 {[%emt 0:00:01]} Qd7 {[%emt 0:00:06]} 68. Qb6 {[%emt 0:00:06]} h4 {[%emt 0:00:04]} 69. Kh2 {[%emt 0:00:02]} h3 {[%emt 0:00:08]} 70. Kxh3 {[%emt 0:00:10]} f4+ {[%emt 0:00:00]} 71. Kh2 {[%emt 0:00:02]} Kf5 {[%emt 0:00:03]} 72. Qc5 {[%emt 0:00:17]} Qd3 {[%emt 0:00:12]} 73. Qf8+ {[%emt 0:00:08]} Kxe5 {[%emt 0:00:02]} 74. Qh8+ {[%emt 0:00:02]} Kd5 {[%emt 0:00:11]} 75. Qa8+ {[%emt 0:00:05]} Kd4 {[%emt 0:00:20]} 76. Qa7+ {[%emt 0:00:01]} Ke5 {[%emt 0:00:10]} 77. Qg7+ {[%emt 0:00:06]} Kd6 {[%emt 0:00:03]} 78. Qf8+ {[%emt 0:00:01]} Kd7 {[%emt 0:00:01]} 79. Qxf4 {[%emt 0:00:02]} Qd6 {[%emt 0:00:04]} 80. Kg3 {[%emt 0:00:02]} h5 {[%emt 0:00:09]} 81. Qxd6+ {[%emt 0:00:19]} Kxd6 {[%emt 0:00:02]} 82. Kf4 {[%emt 0:00:01]} Bg4 {[%emt 0:00:01]} 83. Ke4 {[%emt 0:00:02]} Ke6 {[%emt 0:00:01]} 84. Kf4 {[%emt 0:00:01]} Kd5 {[%emt 0:00:01]} 85. Kg3 {[%emt 0:00:01]} Ke4 {[%emt 0:00:02]} 86. Kh4 {[%emt 0:00:01]} Kf4 {[%emt 0:00:03]} 87. g3+ {[%emt 0:00:01]} Kf3 {[%emt 0:00:00]} 88. Kg5 {[%emt 0:00:01]} Kxg3 {[%emt 0:00:02]} 0-1